Cogmind - Beta 15 @@@ ROGUE MODE // 2025.06.15 @ 19:13:11 Player: ToBeDefined Result: Destroyed by Y-45 Defender with Beam Rifle Performance ------------- Evolutions (2) 1000 Regions Visited (5) 1000 Robots Destroyed (50) 250 Value Destroyed (1348) 1348 Prototype IDs (26) 520 Alien Tech Used (0) 0 Bonus (300) 300 TOTAL SCORE: 4418 Bonus ------- Aligned with FarCom 300 Cogmind --------- Core Integrity 0/550 Matter 188/300 Energy 33/100 System Corruption 0% Temperature Cool (18) Movement Core (700) Ox13 Location -8/Materials Parts ------- > --- POWER (1) -------- (None) > --- PROPULSION (4) --- (None) > --- UTILITY (4) ------ High-capacity Storage Unit > --- WEAPON (2) ------- (None) > --- INVENTORY (20) --- Ion Engine Light Ion Engine Scrap Suit Large Storage Unit Superbattery (1500) Experimental Sensor Array Light Armor Plating Small Laser Particle Gun Particle Cannon Guided Plasma Cannon Assault Rifle Light Assault Rifle Light Assault Rifle Peak State ------------ > --- POWER ------------ Light Nuclear Core > --- PROPULSION ------- Carbon-fiber Leg > --- UTILITY ---------- High-capacity Storage Unit > --- WEAPON ----------- YOLO Cannon > --- INVENTORY -------- Ion Engine Light Ion Engine Scrap Suit Large Storage Unit Superbattery Experimental Sensor Array Light Armor Plating Small Laser Particle Gun Particle Cannon Guided Plasma Cannon Assault Rifle Light Assault Rifle Light Assault Rifle [Rating: 31] Favorites ----------- Power Light Nuclear Core Engine Ion Engine Power Core Light Nuclear Core Propulsion Light Treads Treads Light Treads Leg Aluminum Leg Utility Light Armor Plating Device Improved Heat Sink Storage High-capacity Storage Unit Protection Light Armor Plating Weapon Assault Rifle Energy Gun Particle Gun Energy Cannon YOLO Cannon Ballistic Gun Assault Rifle Launcher Grenade Launcher Build | -11 -10 -10 -10 -9 -8 ------- Run | Yrd Mat Min Exi Min Mat Slots Evolved 4 | . . . . . 4 Power . | . . . . . . Propulsion 2 | . . . . . 2 Utility 2 | . . . . . 2 Weapon . | . . . . . . Parts Attached 40 | 8 15 2 1 5 9 Power 6 | 1 3 1 . 1 . Engine 4 | 1 2 . . 1 . Core 2 | . 1 1 . . . Reactor . | . . . . . . Propulsion 10 | 2 3 . . 1 4 Treads 5 | . 2 . . 1 2 Leg 5 | 2 1 . . . 2 Wheel . | . . . . . . Hover . | . . . . . . Flight . | . . . . . . Utility 14 | 3 6 1 1 2 1 Device 5 | 3 1 . . 1 . Storage 5 | . 4 . 1 . . Processor . | . . . . . . Hackware . | . . . . . . Protection 4 | . 1 1 . 1 1 Artifact . | . . . . . . Weapon 10 | 2 3 . . 1 4 Energy Gun 2 | . 1 . . . 1 Energy Cannon 1 | . . . . . 1 Ballistic Gun 6 | 2 2 . . . 2 Ballistic Cannon . | . . . . . . Launcher 1 | . . . . 1 . Special Weapon . | . . . . . . Impact Weapon . | . . . . . . Slashing Weapon . | . . . . . . Piercing Weapon . | . . . . . . Special Melee Weapon . | . . . . . . Unidentified Prototypes 1 | . . . . 1 . Parts Lost 18 | . 4 . . 1 13 Power 2 | . 1 . . . 1 Propulsion 8 | . 1 . . 1 6 Utility 3 | . . . . . 3 Weapon 5 | . 2 . . . 3 Highest Loss Streak 12 | . 2 . . 1 12 To Critical Strikes . | . . . . . . Average Backups 14 | 2 13 14 14 17 15 Power 1 | . . 1 1 1 2 Propulsion 2 | 1 4 2 2 2 . Utility 5 | . 4 4 5 6 5 Weapon 5 | 1 3 5 6 7 7 Tool/Special . | . . . . . . Unused Backups 25 | 1 12 3 . 2 7 Power 2 | . . 1 . . 1 Propulsion 10 | 1 7 2 . . . Utility 7 | . 4 . . 1 2 Weapon 6 | . 1 . . 1 4 Tool/Special . | . . . . . . Average Slot Usage (%) 98 | . 98 100 100 99 86 Engine 2 | . 8 . . . . Core 11 | . 4 13 14 14 8 Treads 25 | . 18 28 28 27 27 Leg 2 | . 9 . . . 2 Device 2 | . 12 . . . . Storage 13 | . 13 14 14 14 9 Protection 11 | . 1 14 14 13 21 Energy Gun 5 | . 1 . 9 7 7 Ballistic Gun 19 | . 24 28 18 14 8 Launcher 2 | . . . . 6 . Peak Build Rating 31 | 9 12 11 16 24 31 Average Rating 13 | 5 10 10 12 15 20 On Entrance 9 | . 7 8 11 16 15 Naked Turns . | . . . . . . Heaviest Build 63 | 9 32 32 53 53 63 Greatest Support 80 | 20 40 40 40 40 80 Greatest Overweight (x) 19 | . 1 . 1 1 19 Average Overweight (x) . | . . . . 1 . Largest Inventory Capacity 25 | 5 25 15 20 20 20 Average Capacity 16 | 5 14 15 17 20 20 Most Carried 20 | 5 16 15 19 20 20 Average Carried 15 | 2 13 14 15 19 16 Final Capacity 20 | 5 15 15 20 20 20 Final Carried 20 | 5 15 15 19 20 15 Class Distribution -------------------- 53% | Mutant 46% | Scavenger-Mutant Dominant Class ---------------- Scavenger-Mutant | -10/Materials Mutant | -10/Mines Scavenger-Mutant | -10/Exiles Scavenger-Mutant | -9/Mines Scavenger-Mutant | -8/Materials Resources | -11 -10 -10 -10 -9 -8 ----------- Run | Yrd Mat Min Exi Min Mat Matter Collected 1265 | 368 515 150 . 195 37 Remotely . | . . . . . . Salvage Created 1344 | 72 580 115 . 111 466 Parts 96 | 9 31 7 . 17 32 Haulers Intercepted 2 | . 2 . . . . Recyclers Shooed 1 | . . . . . 1 Parts Field Recycled . | . . . . . . Retrieved Matter . | . . . . . . Parts Self-Destructed . | . . . . . . Prevented . | . . . . . . Kills | -11 -10 -10 -10 -9 -8 ------- Run | Yrd Mat Min Exi Min Mat Combat Hostiles Destroyed 39 | 1 13 2 . 10 13 Guns 21 | 1 13 2 . 2 3 Cannons 1 | . . . . . 1 AOE 17 | . . . . 8 9 Classes Destroyed 10 | 2 3 1 . . 4 Worker 2 | . . 1 . . 1 Builder 3 | . . . . . 3 Tunneler 2 | 2 . . . . . Hauler 2 | . 2 . . . . Recycler 1 | . . . . . 1 Watcher 1 | . 1 . . . . Swarmer 15 | . 3 . . 8 4 Grunt 22 | 1 10 2 . 2 7 Sentry 1 | . . . . . 1 Hunter 1 | . . . . . 1 Best Kill Streak 11 | 1 3 2 . 4 11 Combat Bots Only 8 | 1 3 2 . 4 8 Max Kills in Single Turn 3 | 1 1 1 . 2 3 Gunslinging . | . . . . . . Exploded 3 | . . . . 2 3 Melee . | . . . . . . Uniques/NPCs Destroyed . | . . . . . . Combat | -11 -10 -10 -10 -9 -8 -------- Run | Yrd Mat Min Exi Min Mat Hostile Shots Fired 385 | 3 117 16 . 25 224 Missed 107 | 1 38 5 . 5 58 Hits 278 | 2 79 11 . 20 166 Projectile 278 | 2 79 11 . 20 166 Critical Strikes 6 | . 1 1 . . 4 Damage Taken 3370 | 24 870 147 . 248 2081 Core 712 | . 141 . . 15 556 Absorbed by Shields . | . . . . . . Core Remaining (%) 68 | 100 . . . 37 . Volleys Fired 127 | 13 65 8 . 9 32 Largest 2 | 2 2 2 . 2 2 Hottest 100 | 40 40 40 . 85 100 Shots Fired 234 | 26 126 19 . 19 44 Gun 219 | 26 126 19 . 14 34 Cannon 5 | . . . . . 5 Launcher 10 | . . . . 5 5 Special . | . . . . . . Kinetic 205 | 26 126 19 . 10 24 Thermal 19 | . . . . 4 15 Explosive 10 | . . . . 5 5 Electromagnetic . | . . . . . . Robot Hit Streak 12 | 8 12 4 . 2 5 Robot Miss Streak 6 | 1 3 1 . 3 6 Penetration Max . | . . . . . . Secondary Targets 2 | . . 1 . 1 . Max Gunslinging Chain 1 | . . 1 . 1 . Shots Hit Robots 136 | 18 83 11 . 5 19 Core Hits 84 | 4 28 6 . 14 32 Critical Kills 1 | . 1 . . . . Critical Parts Destroyed . | . . . . . . Critical Strikes 2 | . 1 . . . 1 Destroy 2 | . 1 . . . 1 Melee Attacks . | . . . . . . Impact . | . . . . . . Slashing . | . . . . . . Piercing . | . . . . . . Sneak Attacks . | . . . . . . Combat Hostiles . | . . . . . . Follow-up Attacks . | . . . . . . Damage Inflicted 3294 | 227 896 150 . 454 1567 Guns 1559 | 227 896 150 . 61 225 Cannons 123 | . . . . . 123 Explosions 1612 | . . . . 393 1219 Melee . | . . . . . . Ramming . | . . . . . . Kinetic 1405 | 227 896 150 . 15 117 Thermal 916 | . . . . 46 870 Explosive 973 | . . . . 393 580 Electromagnetic . | . . . . . . Impact . | . . . . . . Slashing . | . . . . . . Piercing . | . . . . . . Highest Corruption 2 | . 2 2 2 2 . Average Corruption 1 | . 1 2 2 2 . Corruption Purged . | . . . . . . Corruption Blocked . | . . . . . . Effects 72 | . 15 20 13 24 . Message Errors 18 | . 6 2 4 6 . Matter Fused 11 | . . 5 1 5 . Heat Flow Errors 11 | . 3 1 4 3 . Energy Discharges 9 | . 1 2 3 3 . Parts Rejected 1 | . 1 . . . . Data Loss (minor) 12 | . 2 4 1 5 . Data Loss (major) 4 | . 1 2 . 1 . Misfires 5 | . 1 3 . 1 . Alerts 1 | . . 1 . . . Overload Shots . | . . . . . . Overflow Damage 109 | . . . . 14 95 Projectiles 33 | . . . . . 33 Explosions 76 | . . . . 14 62 Melee . | . . . . . . Knockbacks . | . . . . . . Impact . | . . . . . . Kinetic . | . . . . . . Secondary . | . . . . . . Self-Inflicted Damage 194 | . . . . 31 163 Shots 4 | . . . . 1 3 Rammed . | . . . . . . Targets Rammed . | . . . . . . Kicked . | . . . . . . Crushed . | . . . . . . Highest Temperature 309 | . 249 216 274 247 309 Average Temperature 112 | . 107 59 129 90 136 Received Heat Transfer 1212 | 12 387 96 . 78 639 Effects 1 | . . . . . 1 Interference 1 | . . . . . 1 Siege Activations . | . . . . . . Martial Activations . | . . . . . . Shielding Activations . | . . . . . . Robots Disrupted . | . . . . . . Combat Hostiles . | . . . . . . Robots Corrupted . | . . . . . . Combat Hostiles . | . . . . . . Parts Fried . | . . . . . . Impact Corruptions . | . . . . . . Robots Melted . | . . . . . . Combat Hostiles . | . . . . . . Parts Melted . | . . . . . . Heat Transferred 1090 | . . . . 111 979 Parts Sabotaged . | . . . . . . Parts Stolen . | . . . . . . Parts Stripped . | . . . . . . Power Chain Reactions . | . . . . . . Alert | -11 -10 -10 -10 -9 -8 ------- Run | Yrd Mat Min Exi Min Mat Maximum Alert Level 2 | . . . . . 2 Low Security (%) 99 | 100 100 100 . 100 91 Level 1 . | . . . . . 7 Level 2 . | . . . . . 1 Level 3 . | . . . . . . Level 4 . | . . . . . . Level 5 . | . . . . . . High Security . | . . . . . . Max Security . | . . . . . . Peak Influence 461 | 20 92 50 . 107 461 Initial 28 | . . . . . 28 Average 21 | 1 26 2 . 26 46 Influence Increases 1431 | 30 422 70 . 274 635 Destroy 0b10 Robot/C 780 | 20 260 40 . 200 260 Destroy 0b10 Robot/NC 55 | 10 15 5 . . 25 Destroy Leader 166 | . 66 10 . 30 60 Successful Hack 51 | . 36 15 . . . Disable Machine 75 | . . . . 15 60 Anti-Garrison Action 150 | . . . . . 150 Destroy Structure 109 | . . . . 29 80 Lose Combat Pursuer 45 | . 45 . . . . Influence Decreases 980 | 30 422 70 . 200 258 Entered New Map 46 | . . . . . 46 Time Decay 764 | 30 382 70 . 190 92 Lost Part 170 | . 40 . . 10 120 Squads Dispatched 11 | . 3 . . . 8 Investigation 1 | . 1 . . . . Extermination . | . . . . . . Reinforcement 5 | . 2 . . . 3 Assault 2 | . . . . . 2 Garrison 3 | . . . . . 3 Intercept . | . . . . . . Searches Triggered . | . . . . . . Construction Impeded 1 | . . . . . 1 Haulers Reinforced . | . . . . . . Active Scanning Responses . | . . . . . . Cargo Convoy Interrupts . | . . . . . . Stealth | -11 -10 -10 -10 -9 -8 --------- Run | Yrd Mat Min Exi Min Mat Distress Signals 5 | . 3 . . . 2 Communications Jammed . | . . . . . . Distress Signals . | . . . . . . Times Spotted 63 | 1 28 2 . 10 22 Peak Tracking Total 9 | 1 5 2 . 4 9 Tactical Retreats 2 | . 2 . . . . Traps | -11 -10 -10 -10 -9 -8 ------- Run | Yrd Mat Min Exi Min Mat Traps Triggered 2 | . 2 . . . . Indirectly . | . . . . . . Trap Hack Attempts . | . . . . . . Triggered . | . . . . . . Disarmed . | . . . . . . Reprogrammed . | . . . . . . Reused . | . . . . . . Traps Extracted . | . . . . . . Installed . | . . . . . . Triggered . | . . . . . . Machines | -11 -10 -10 -10 -9 -8 ---------- Run | Yrd Mat Min Exi Min Mat Machines Disabled 6 | . . . . 1 5 Max in Single Turn 2 | . . . . 1 2 Garrison Access 1 | . . . . . 1 Machines Repaired . | . . . . . . Machines Dismantled . | . . . . . . Machines Sabotaged . | . . . . . . Overloaded Fab Kills . | . . . . . . Hacking | -11 -10 -10 -10 -9 -8 --------- Run | Yrd Mat Min Exi Min Mat Machines Accessed 9 | . 5 1 1 . 2 Terminals 4 | . 3 1 . . . Fabricators . | . . . . . . Repair Stations 2 | . 1 . . . 1 Recycling Units 1 | . 1 . . . . Scanalyzers 1 | . . . . . 1 Garrison Access . | . . . . . . Total Hacks 31 | . 18 8 1 . 4 Successful 17 | . 9 4 1 . 3 Failed 14 | . 9 4 . . 1 Catastrophic 1 | . . 1 . . . Database Lockouts . | . . . . . . Manual 1 | . . . 1 . . Terminals 21 | . 13 8 . . . Fabricators . | . . . . . . Repair Stations 5 | . 3 . . . 2 Recycling Units 2 | . 2 . . . . Scanalyzers 2 | . . . . . 2 Garrison Access . | . . . . . . Terminal Hacks 13 | . 8 4 1 . . Record 5 | . 1 4 . . . Prototype ID Bank 1 | . 1 . . . . Branch Access Points 1 | . 1 . . . . Locate Traps 1 | . 1 . . . . Reinforcement Status 1 | . 1 . . . . Recall Reinforcements 1 | . 1 . . . . Registered Components 1 | . 1 . . . . Zone Layout 1 | . 1 . . . . Proto ID Catalog 1 | . . . 1 . . Fabricator Hacks . | . . . . . . Repair Station Hacks 2 | . 1 . . . 1 Scan Component 2 | . 1 . . . 1 Recycling Unit Hacks . | . . . . . . Scanalyzer 2 | . . . . . 2 Insert Component 1 | . . . . . 1 Analyze 1 | . . . . . 1 Garrison Access Hacks . | . . . . . . Unauthorized Hacks . | . . . . . . Terminals . | . . . . . . Fabricators . | . . . . . . Repair Stations . | . . . . . . Recycling Units . | . . . . . . Scanalyzers . | . . . . . . Garrison Access . | . . . . . . Data Cores Recovered . | . . . . . . Used . | . . . . . . Hacking Detections 6 | . 4 1 . . 1 Full Trace Events 2 | . 2 . . . . Feedback Events 1 | . 1 . . . . Corruption 1 | . 1 . . . . Feedback Blocked . | . . . . . . Robot Schematics Acquired . | . . . . . . Robots Built . | . . . . . . Authchips . | . . . . . . Time . | . . . . . . Total Robot Build Rating . | . . . . . . Part Schematics Acquired 1 | . . . . . 1 Parts Built . | . . . . . . Authchips . | . . . . . . Time . | . . . . . . Total Part Build Rating . | . . . . . . Parts Repaired . | . . . . . . Time . | . . . . . . Parts Recycled . | . . . . . . Recycled Matter . | . . . . . . Retrieved Matter . | . . . . . . Retrieved Components . | . . . . . . Parts Scanalyzed 1 | . . . . . 1 Part Schematics Acquired 1 | . . . . . 1 Parts Damaged . | . . . . . . Bothacking | -11 -10 -10 -10 -9 -8 ------------ Run | Yrd Mat Min Exi Min Mat Used RIF Installer . | . . . . . . Robots Hacked . | . . . . . . Non-combat . | . . . . . . Combat . | . . . . . . Robot Hacks Applied . | . . . . . . Relay Couplers Released 4 | . . . . . 4 Machine Destruction 4 | . . . . . 4 Fabnet Peak Effective % . | . . . . . . Robots Rewired . | . . . . . . Allies Hacked . | . . . . . . Hacks Repelled . | . . . . . . Allies | -11 -10 -10 -10 -9 -8 -------- Run | Yrd Mat Min Exi Min Mat Total Allies . | . . . . . . Largest Group . | . . . . . . Highest-Rated Group . | . . . . . . Highest-Rated Ally . | . . . . . . Total Orders . | . . . . . . Ally Attacks . | . . . . . . Total Damage . | . . . . . . Kills . | . . . . . . Allies Corrupted . | . . . . . . Allies Melted . | . . . . . . Intel | -11 -10 -10 -10 -9 -8 ------- Run | Yrd Mat Min Exi Min Mat Active Infowar (turns) 155 | 134 15 . . 4 2 Sensors 6 | . . . . 4 2 Terrain 79 | 79 . . . . . Seismic 70 | 55 15 . . . . Robot Analysis Total . | . . . . . . Derelict Logs Recovered 4 | . . 1 . 3 . Drone Launches . | . . . . . . Drone Recoveries . | . . . . . . Exploration | -11 -10 -10 -10 -9 -8 ------------- Run | Yrd Mat Min Exi Min Mat Turns Passed 6664 | 363 1453 1134 1039 2121 554 Spaces Moved 3155 | 264 719 673 534 854 111 Core 26 | 24 . . . . 2 Treads 2675 | . 511 673 534 854 103 Legs 454 | 240 208 . . . 6 Wheels . | . . . . . . Hover . | . . . . . . Flight . | . . . . . . Fastest Speed 50 | 50 120 160 160 240 160 Average Speed 184 | 113 161 160 193 240 182 Slowest Speed 1000 | 120 190 160 240 240 1000 Overloaded Moves . | . . . . . . Propulsion Burnouts . | . . . . . . Robots Hopped . | . . . . . . Potential Cave-ins . | . . . . . . Cave-ins Triggered . | . . . . . . Exploration Rate (%) 64 | 9 94 98 72 97 17 Regions Visited 5 Branch Regions 3 Pre-discovered Areas 2 | . . 1 . 1 . Known Exits Taken 1 | . 1 . . . . Unknown Exits Taken 4 | 1 . 1 1 1 . Scrap Searched 3 | . . 1 . 2 . Spaces Dug . | . . . . . . Terrain Destroyed 107 | . . . . 30 77 Melee . | . . . . . . Projectile 2 | . . . . . 2 AOE 105 | . . . . 30 75 Terrain Rammed . | . . . . . . Walls Destroyed . | . . . . . . Machines Disabled . | . . . . . . Actions | -11 -10 -10 -10 -9 -8 --------- Run | Yrd Mat Min Exi Min Mat Total 3785 | 302 901 716 541 909 416 Wait 345 | . 35 28 . 28 254 Move 3150 | 263 718 672 533 853 111 Hop . | . . . . . . Pick Up 61 | 14 32 2 4 7 2 Fast Attach 9 | . 8 . . . 1 Attach 28 | 9 8 1 . 1 9 Detach 8 | 1 3 1 . . 3 Swap 19 | . 7 1 2 5 4 Drop 38 | 2 25 3 2 6 . Fire 127 | 13 65 8 . 9 32 Melee . | . . . . . . Ram . | . . . . . . Kick . | . . . . . . Crush . | . . . . . . Escape Stasis . | . . . . . . Rewire . | . . . . . . Trap . | . . . . . . Miscellaneous . | . . . . . . Route ------- -11/Scrapyard -10/Materials (discovered 4 exits: [*Mat x3] / *Min) -10/Mines (discovered 3 exits: [*Mat x2] / *Exi) -10/Exiles -9/Mines -8/Materials History --------- Turn | Location | Event 2 | -11/Scrapyard | Met Revision 17 79 | -11/Scrapyard | Discovered new exit (range 8) 364 | -11/Scrapyard | Entered Materials 365 | -10/Materials | Build established: Mutant 474 | -10/Materials | Identified exit to Mines 1062 | -10/Materials | Discovered new exit (range 4) 1135 | -10/Materials | Build established: Scavenger-Mutant 1241 | -10/Materials | Discovered new exit (range 9) 1297 | -10/Materials | Core integrity fell below 50% 1569 | -10/Materials | Discovered new exit (range 10) 1817 | -10/Materials | Entered Mines 1941 | -10/Mines | Discovered new exit (range 14) 1965 | -10/Mines | Build established: Mutant 2010 | -10/Mines | Found a Scrap Suit stashed away for nefarious purposes 2015 | -10/Mines | Found Scrap Suit 2217 | -10/Mines | Deemed a non-threat by the Exiles lab entrance 2217 | -10/Mines | Discovered new exit (range 5) 2379 | -10/Mines | Discovered new exit (range 11) 2951 | -10/Mines | Entered Exiles 2998 | -10/Exiles | Met 8R-AWN 3020 | -10/Exiles | Met EX-HEX 3108 | -10/Exiles | Met EX-DEC 3196 | -10/Exiles | Met EX-BIN 3220 | -10/Exiles | Aligned with FarCom system 3222 | -10/Exiles | Given EX-Vault access code 3284 | -10/Exiles | Opened EX-Vault 3299 | -10/Exiles | Found Gui. Plasma Cannon 3332 | -10/Exiles | Warned to stay clear of 0b10 Research branches 3523 | -10/Exiles | Discovered new exit (range 10) 3604 | -10/Exiles | Build established: Scavenger-Mutant 3766 | -10/Exiles | Found YOLO Cannon 3773 | -10/Exiles | Found Superbattery 3990 | -10/Exiles | Stole three prototypes: Superbattery, Gui. Plasma Cannon, YOLO Cannon 3990 | -10/Exiles | Entered Mines 4062 | -9/Mines | Learned Materials emergency access door positions 4065 | -9/Mines | Learned location of Zion (-7) 4619 | -9/Mines | Found a damaged Exp. Sensor Array with a note attached 4626 | -9/Mines | Found Prototype Device 4627 | -9/Mines | Identified Exp. Sensor Array 4734 | -9/Mines | Discovered new exit (range 15) 5372 | -9/Mines | Learned Materials terminal intel 5402 | -9/Mines | Build established: Mutant 6111 | -9/Mines | Entered Materials 6111 | -8/Materials | Evolved 4 slots: Propulsion x2, Utility x2 6113 | -8/Materials | Loaded intel: 12 terminal locations 6411 | -8/Materials | Build established: Scavenger-Mutant 6432 | -8/Materials | Garrison activated, responded to threat 6614 | -8/Materials | Destroyed 8 combat bots 6625 | -8/Materials | Core integrity fell below 50% 6649 | -8/Materials | Core integrity fell below 20% 6665 | -8/Materials | Destroyed by Y-45 Defender with Beam Rifle Last Messages --------------- U-05 Engineer lays Concrete. K-01 Serf collects debris. U-05 Engineer builds a Wall. K-01 Serf collects debris. K-01 Serf destroyed. ALERT: Garrison Access compromised, dispatching multiple assault carriers. Garrison Access disabled. Relay Coupler [Heavy] tumbles out of Garrison Access. Relay Coupler [Grunt] tumbles out of Garrison Access. Relay Coupler [Swarmer] tumbles out of Garrison Access. Relay Coupler [Sentry] tumbles out of Garrison Access. Destroyed Unknown Special Weapon. K-01 Serf collects debris. YOLO Cannon destroyed. K-01 Serf collects debris. Map ----- +----------------------------------------------------+ | ??????????????????????????????# # """ #?? | | ??????????????????????????????# # """ #?? | | ??????????????????????????????# # #?? | | ??????????????????????????????+ ####+#####?? | | ??????????????????????????????# #??# #?????? | | ??????????????????????????????# #??# #?????? | | ??????????????????????????????# ####+###???? | | ??????????????????????????????# # #???? | | ??????????????????????????????# # #???? | | ????????????????#########"""""# # #???? | | ????????????????# " + #???? | | "???????????????# u" # #???? | | ????????????????# " # #???? | | ????????????????# S"" ########???? | | ????????????????# "" = # ??????? | | ????????????????# %= # """??????? | | ????????????????#######" ;!"G ?????? | | ?????????????+##########" [[; [""= #???? | | ???????????? =% ;%!!%%*#???? | | ???????????? [*% = * %!! #???? | | ???????????? * % [! ; *#! #???? | | ???????????? ###### %Y ""???? | | ????????????????????# " g ; ""???? | | ????????????????????# " %[ # ""???? | | ????????????????????# [ Yk ???? | | ????????"???????????# " @ % #??????????? | | ????????T???????????# """ #??????????? | | ????????"???????????# """ ; #??????????? | | ????????????????????# s # #??????????? | | ????????????????????#] ! # #??????????? | | ????????????????????########### #??????????? | | ??????????????????????????????? #???????""?? | | ???T????T?o???????????????????? #???????"T?? | | ??????????w???????????????????????????????""?? | | ?????????????????????????????????????????????? | | ?????????????????????????????????????????????? | | ?????????????????????????????????????????????? | | ?????????????????????????????????????????????? | | ?????????????????????????????????????????????? | | ?????????????????????????????????????????????? | | ?????????????????????????????????????????????? | | ?????????????????????????????????????????????? | | ?????????????????????????????????????????????? | | ?????????????????????????????????????????????? | | ?????????????????????????????????????????????? | | ?????????????????????????????????????????????? | | ?????????????????????????????????????????????? | | ?????????????????????????????????????????????? | | ?????????????????????????????????????????????? | | ?????????????????????????????????????????????? | +----------------------------------------------------+ Best States ------------- Heat Dissipation 39 Energy Generation 14 Energy Capacity 250 Matter Stores 300 Matter Capacity 300 Sight Range 16 Robot Scan Range 20 Terrain Scan Range 16 Terrain Scan Density 10 Armor Coverage 450 Evasion (%) 55 Recoil Reduction 4 Item Schematics ----------------- Lgt. Armor Plating | -8/Materials | Scanalyzed Robot Schematics ------------------ None Fabricated ------------ Nothing Repaired ---------- Nothing Alien Tech Used ----------------- None Achievements -------------- None Challenges ------------ None Game ------ Seed BurstDimensionalLoader Manual? 0 Play Time 01:11:42 Cumulative 14.2 hours Start 2025.06.15 @ 17:56:17 End 2025.06.15 @ 19:13:11 Sessions 1 Manual Loads 0 Difficulty Rogue Special Mode None Game No. 15 Rogue 15 Adventurer 0 Explorer 0 Win Type - Total 0 Types 0/0/0/0/0/0/0/0/0/0 Lore% 7 Gallery% 12 Achievement% 12 Wizard Run 0 Options --------- Layout 1 ASCII 0 Keyboard 0 Movement Mouse Keybinds 0 Fullscreen 1 Font 24/Smallcaps Map View 50x35 Zoom Use 0% Tactical HUD 0 Map Filters NONE Filters NONE Steam 1 RUN: 30bbe5c2-000d-4368-8ac4-ce57a416f034